bitfinex/quotes_BTCUSD_20251116
["timestamp","ask_amount","ask_price","bid_price","bid_amount"]
[1763278845969,0.00013515,96051.0,96050.0,0.07570825]
[1763278848293,0.00013515,96051.0,96050.0,0.07470825]
[1763278848803,0.00013515,96051.0,96050.0,0.07570825]
[1763278851868,0.00013515,96051.0,96050.0,0.07470825]
[1763278852299,0.00013515,96051.0,96050.0,0.07570825]
[1763278852498,0.00013515,96051.0,96050.0,0.07470825]
[1763278852982,0.00013515,96051.0,96050.0,0.07570825]
[1763278853370,0.00013515,96051.0,96050.0,0.09653073]
[1763278856709,0.00013515,96051.0,96050.0,0.07570825]
[1763278858192,0.00013515,96051.0,96050.0,0.07470825]
[1763278858419,0.00013515,96051.0,96050.0,0.07570825]
[1763278864177,0.00013515,96051.0,96050.0,0.09653073]
[1763278864843,0.00013515,96051.0,96050.0,0.07570825]
[1763278867620,0.00013515,96051.0,96050.0,0.09653073]
[1763278869437,0.00013515,96051.0,96050.0,0.07570825]
[1763278871454,0.00013515,96051.0,96050.0,0.09653073]
[1763278872178,0.00013515,96051.0,96050.0,0.30475561]
[1763278872361,0.00013515,96051.0,96050.0,0.38803528]
[1763278873250,0.00013515,96051.0,96050.0,0.38703528]
[1763278874648,0.00013515,96051.0,96050.0,0.38803528]
[1763278876148,0.00013515,96051.0,96050.0,0.1798104]
[1763278876889,0.00013515,96051.0,96050.0,0.1788104]
[1763278879382,0.00013515,96051.0,96050.0,0.1798104]
[1763278879813,0.00013515,96051.0,96050.0,0.1788104]
[1763278880557,0.00013515,96051.0,96050.0,0.38703528]
[1763278880977,0.00013515,96051.0,96050.0,0.1788104]
[1763278881561,0.00013515,96051.0,96050.0,0.38703528]
[1763278881928,0.00013515,96051.0,96050.0,0.1788104]
[1763278882259,0.00013515,96051.0,96050.0,0.38703528]
[1763278883140,0.00013515,96051.0,96050.0,0.38803528]
[1763278883813,0.00013515,96051.0,96050.0,0.1798104]
[1763278884012,0.00013515,96051.0,96050.0,0.38803528]
[1763278885864,0.00013515,96051.0,96050.0,0.1788104]
[1763278886182,0.00013515,96051.0,96050.0,0.1798104]
[1763278886386,0.00013515,96051.0,96050.0,0.1788104]
[1763278886698,0.00013515,96051.0,96050.0,0.1798104]
[1763278887115,0.00013515,96051.0,96050.0,0.1788104]
[1763278887286,0.00013515,96051.0,96050.0,0.1798104]
[1763278887693,0.00013515,96051.0,96050.0,0.1788104]
[1763278888010,0.00013515,96051.0,96050.0,0.40785776]
[1763278888215,0.00013515,96051.0,96050.0,0.38703528]
[1763278888878,0.00013515,96051.0,96050.0,0.38803528]
[1763278890734,0.00013515,96051.0,96050.0,0.38703528]
[1763278890990,0.00013515,96051.0,96050.0,0.1788104]
[1763278891182,0.00013515,96051.0,96050.0,0.40785776]
[1763278891409,0.00013515,96051.0,96050.0,0.38703528]
[1763278899220,0.00013515,96051.0,96050.0,0.38803528]
[1763278899348,0.00013515,96051.0,96050.0,0.38703528]
[1763278900211,0.00013515,96051.0,96050.0,0.38803528]
[1763278901248,2.052e-05,96051.0,96050.0,0.40448528]
[1763278901451,2.052e-05,96051.0,96050.0,0.38803528]
[1763278901789,2.052e-05,96051.0,96050.0,0.38703528]
[1763278902466,2.052e-05,96051.0,96050.0,0.1788104]
[1763278902740,2.052e-05,96051.0,96050.0,0.40785776]
[1763278902963,2.052e-05,96051.0,96050.0,0.38703528]
[1763278905173,2.052e-05,96051.0,96050.0,0.38803528]
[1763278905761,2.052e-05,96051.0,96050.0,0.38703528]
[1763278911234,0.1612705,96070.0,96055.0,0.04341874]
[1763278911414,0.1612705,96070.0,96069.0,0.17494089]
[1763278911620,0.322541,96080.0,96070.0,0.04341874]
[1763278911815,0.32267612,96080.0,96072.0,0.04341874]
[1763278912025,0.32267612,96080.0,96074.0,0.04341874]
[1763278912405,0.32267612,96080.0,96079.0,0.01097]
[1763278912406,0.00013512,96080.0,96079.0,0.01097]
[1763278913285,0.00013512,96080.0,96074.0,0.06423602]
[1763278913286,0.02755512,96080.0,96074.0,0.06423602]
[1763278913495,0.02755512,96080.0,96072.0,0.04225165]
[1763278913496,0.02755512,96080.0,96073.0,0.04341874]
[1763278914126,0.01156512,96080.0,96073.0,0.04341874]
[1763278914786,0.01156512,96080.0,96066.0,0.01097]
[1763278914787,0.01156512,96080.0,96064.0,0.04341874]
[1763278914788,0.01599,96074.0,96064.0,0.04341874]
[1763278915002,0.01156512,96080.0,96071.0,0.10410215]
[1763278915003,0.01599,96073.0,96071.0,0.10410215]
[1763278916278,0.1612705,96074.0,96071.0,0.10410215]
[1763278916480,0.02451,96075.0,96071.0,0.10410215]
[1763278921757,0.02451,96075.0,96065.0,0.01097]
[1763278921758,0.01564,96072.0,96066.0,0.04341874]
[1763278921948,0.0272,96067.0,96066.0,0.04341874]
[1763278942531,0.01156,96067.0,96061.0,0.04341874]
[1763278942739,0.01156,96067.0,96066.0,0.14752089]
[1763278943186,0.323,96070.0,96067.0,0.05438874]
[1763278943401,0.32313512,96080.0,96075.0,0.01097]
[1763278943608,0.32313512,96080.0,96075.0,0.02691]
[1763278944566,0.00013512,96080.0,96076.0,0.02375]
[1763278947898,0.00013512,96080.0,96075.0,0.01097]
[1763278949464,0.00013512,96080.0,96073.0,0.04341874]
[1763278964747,0.00013512,96080.0,96073.0,0.06700874]
[1763278966573,0.00013512,96080.0,96075.0,0.04341874]
[1763278967117,0.00013512,96080.0,96076.0,0.01097]
[1763278969321,0.00013512,96080.0,96077.0,0.04341874]
[1763278969726,0.00013512,96080.0,96079.0,0.04341874]
[1763278970185,0.00013512,96080.0,96077.0,0.04341874]
[1763278970681,0.00013512,96080.0,96079.0,0.04341874]
[1763278972334,0.00013512,96080.0,96077.0,0.04341874]
[1763278976436,0.00013512,96080.0,96077.0,0.06700874]
[1763278980731,0.00013512,96080.0,96079.0,0.04341874]
[1763278982827,0.00013512,96080.0,96076.0,0.01097]
[1763278982828,0.00013512,96080.0,96077.0,0.04341874]
[1763278983547,0.00013512,96080.0,96079.0,0.04341874]
[1763278983905,0.00013512,96080.0,96078.0,0.04341874]
[1763278984551,0.00013512,96080.0,96079.0,0.0228]
[1763278986196,0.00013512,96080.0,96078.0,0.04341874]
[1763278986396,0.00013512,96080.0,96079.0,0.04341874]
[1763278986802,0.00013512,96080.0,96078.0,0.04341874]
[1763278989526,0.00013512,96080.0,96077.0,0.01097]
[1763278989795,0.00013512,96080.0,96078.0,0.04341874]
[1763278991569,0.00013512,96080.0,96079.0,0.0228]
[1763278996922,0.00013512,96080.0,96079.0,0.06621874]
[1763278999079,0.00013512,96080.0,96079.0,0.04341874]
[1763278999698,0.00013512,96080.0,96079.0,0.06744874]
[1763279000272,0.00013512,96080.0,96079.0,0.04341874]
[1763279000467,0.00013512,96080.0,96079.0,0.06744874]
[1763279002463,0.00013512,96080.0,96079.0,0.04341874]
[1763279003359,0.01645512,96080.0,96064.0,0.01097]
[1763279003625,0.01645512,96080.0,96040.0,0.00999999]
[1763279003626,0.323,96069.0,96037.0,0.09340692]
[1763279003819,0.323,96069.0,96031.0,0.01097]
[1763279003820,0.5,96075.0,96031.0,0.01097]
[1763279003821,0.02737,96040.0,96034.0,0.02252]
[1763279004154,0.02737,96040.0,96031.0,0.01097]
[1763279004551,0.01105,96040.0,96031.0,0.01097]
[1763279004701,0.01105,96040.0,96032.0,0.04341874]
[1763279004903,0.36286032,96041.0,96032.0,0.00013515]
[1763279005085,0.24190688,96041.0,96040.0,0.01539]
[1763279005303,0.323,96048.0,96041.0,0.04341874]
[1763279005492,0.323,96048.0,96047.0,0.10410215]
[1763279010600,0.36286032,96057.0,96048.0,0.07841874]
[1763279010601,0.323,96056.0,96048.0,0.07841874]
[1763279010811,0.323,96056.0,96050.0,0.04341874]
[1763279011040,0.323,96056.0,96048.0,0.01097]
[1763279011279,0.323,96056.0,96050.0,0.04341874]
[1763279012916,0.02252,96057.0,96050.0,0.04341874]
[1763279017207,0.01633465,96056.0,96050.0,0.04341874]
[1763279017807,0.01159,96051.0,96050.0,0.04341874]
[1763279019601,0.01633465,96056.0,96050.0,0.04341874]
[1763279025412,0.01633465,96056.0,96042.0,0.02435]
[1763279025413,0.02779,96051.0,96031.0,0.02435]
[1763279025617,0.00668,96044.0,96043.0,0.10410215]
[1763279027960,0.00668,96044.0,96043.0,0.10510215]
[1763279028582,0.02288,96044.0,96043.0,0.10510215]
[1763279033356,0.04243141,96044.0,96043.0,0.10510215]
[1763279036691,0.04243141,96044.0,96043.0,0.001]
[1763279038010,0.02288,96044.0,96043.0,0.001]
[1763279038574,0.04243325,96044.0,96043.0,0.001]
[1763279038990,0.02288,96044.0,96043.0,0.001]
[1763279039221,0.00668,96044.0,96043.0,0.001]
[1763279040626,0.02623293,96044.0,96043.0,0.001]
[1763279041176,0.00668,96044.0,96043.0,0.001]
[1763279041870,0.01633514,96046.0,96043.0,0.001]
[1763279042078,0.01633514,96046.0,96045.0,0.10410215]
[1763279042497,0.03588818,96046.0,96045.0,0.10410215]
[1763279042723,0.03588818,96046.0,96045.0,0.14752089]
[1763279042724,0.01633514,96046.0,96045.0,0.14752089]
[1763279043544,0.323,96054.0,96045.0,0.14752089]
[1763279043545,0.323,96054.0,96046.0,0.05438874]
[1763279043725,0.01633424,96052.0,96046.0,0.07807874]
[1763279043963,0.01633424,96052.0,96048.0,0.04341874]
[1763279044174,0.323,96059.0,96048.0,0.04341874]
[1763279044351,0.01954994,96058.0,96048.0,0.04341874]
[1763279045331,0.01954994,96058.0,96047.0,0.02369]
[1763279045332,0.323,96057.0,96050.0,0.04341874]
[1763279045535,0.01954994,96056.0,96050.0,0.04341874]
[1763279045733,0.01954994,96055.0,96051.0,0.01097]
[1763279045939,0.01954994,96054.0,96051.0,0.01097]
[1763279046142,0.323,96057.0,96051.0,0.01097]
[1763279046345,0.01954738,96056.0,96051.0,0.01097]
[1763279046809,0.01954738,96056.0,96051.0,0.03466]
[1763279047772,0.01954738,96056.0,96052.0,0.04341874]
[1763279047984,0.16139413,96060.0,96052.0,0.06710874]
[1763279047985,0.323,96059.0,96052.0,0.06710874]
[1763279048186,0.323,96059.0,96055.0,0.01097]
[1763279048389,0.323,96059.0,96056.0,0.04341874]
[1763279048653,0.323,96059.0,96056.0,0.06710874]
[1763279048994,0.01633406,96064.0,96058.0,0.04341874]
[1763279049202,0.01633406,96064.0,96063.0,0.10410215]
[1763279062868,0.01623406,96064.0,96063.0,0.10410215]
[1763279066642,0.01623406,96064.0,96060.0,0.01097]
[1763279066846,0.01623406,96064.0,96063.0,0.10410215]
[1763279069091,0.01623406,96064.0,96063.0,0.10367159]
[1763279082816,0.01613406,96064.0,96063.0,0.10367159]
[1763279090182,0.01176,96071.0,96063.0,0.10367159]
[1763279090385,0.01956032,96070.0,96063.0,0.10367159]
[1763279094047,0.03589316,96070.0,96063.0,0.10367159]
[1763279094227,0.01956032,96069.0,96063.0,0.10367159]
[1763279094437,0.01633284,96070.0,96063.0,0.10367159]
[1763279094645,0.0195601,96069.0,96063.0,0.10367159]
[1763279101523,0.0123,96087.0,96070.0,0.04341874]
[1763279101693,0.01955808,96086.0,96081.0,0.10410215]
[1763279101893,0.01955808,96086.0,96070.0,0.04341874]
[1763279101894,0.05670808,96086.0,96070.0,0.04341874]
[1763279102034,0.01955808,96085.0,96078.0,0.10410215]
[1763279102240,0.01955808,96084.0,96078.0,0.10410215]
[1763279102435,0.01955808,96083.0,96078.0,0.10410215]
[1763279102667,0.02485,96085.0,96078.0,0.10410215]
[1763279102668,0.01955808,96082.0,96078.0,0.10410215]
[1763279103004,0.01955808,96081.0,96078.0,0.10410215]
[1763279103199,0.0312839,96083.0,96078.0,0.10410215]
[1763279103404,0.01954183,96082.0,96078.0,0.10410215]
[1763279103808,0.02485,96085.0,96078.0,0.10410215]
[1763279104017,0.0312839,96084.0,96078.0,0.10410215]
[1763279105078,0.01633127,96083.0,96078.0,0.10410215]
[1763279105781,0.0123,96079.0,96078.0,0.10410215]
[1763279113889,0.04761517,96083.0,96078.0,0.10410215]
[1763279114291,0.01633127,96083.0,96078.0,0.10410215]
[1763279114633,0.01633127,96083.0,96079.0,0.02448]
[1763279114795,0.0312839,96085.0,96079.0,0.02448]
[1763279115012,0.00013512,96087.0,96079.0,0.02448]
[1763279115407,0.00013512,96087.0,96084.0,0.01097]
[1763279115818,0.00013512,96087.0,96085.0,0.01097]
[1763279117474,0.00013512,96087.0,96080.0,0.01097]
[1763279117651,0.00013512,96087.0,96083.0,0.10410215]
[1763279128959,0.00013512,96087.0,96083.0,0.10410215]
[1763279131958,0.00013512,96087.0,96084.0,0.02294]
[1763279132109,0.00013512,96087.0,96085.0,0.04341874]
[1763279132312,0.00013512,96087.0,96085.0,0.05438874]
[1763279132492,0.00013512,96087.0,96086.0,0.03391]
[1763279134662,0.00013512,96087.0,96086.0,0.01097]
[1763279135273,0.00013512,96087.0,96086.0,0.03391]
[1763279137022,0.00557602,96087.0,96086.0,0.03391]
[1763279139847,0.00557602,96087.0,96086.0,0.01097]
[1763279140346,0.00557602,96087.0,96086.0,0.03391]
[1763279141583,0.00557602,96087.0,96086.0,0.01097]
[1763279142757,0.00557602,96087.0,96086.0,0.03391]
[1763279145068,0.00557602,96087.0,96086.0,0.01097]
[1763279145517,0.00557602,96087.0,96086.0,0.03391]
[1763279146689,0.00557602,96087.0,96086.0,0.01097]
[1763279147820,0.00557602,96087.0,96086.0,0.03391]
[1763279148161,0.00557602,96087.0,96086.0,0.01097]
[1763279148770,0.00557602,96087.0,96086.0,0.03391]
[1763279149140,0.00557602,96087.0,96086.0,0.01097]
[1763279149473,0.00557602,96087.0,96086.0,0.03391]
[1763279149925,0.00557602,96087.0,96086.0,0.01097]
[1763279151343,0.00557602,96087.0,96086.0,0.07732874]
[1763279151542,0.00557602,96087.0,96086.0,0.05438874]
[1763279153704,0.00557602,96087.0,96086.0,0.08566328]
[1763279153911,0.00557602,96087.0,96086.0,0.29381014]
[1763279155086,0.00013512,96087.0,96086.0,0.29381014]
[1763279167884,0.00013512,96087.0,96086.0,0.08566328]
[1763279168117,0.00013512,96087.0,96086.0,0.10647796]
[1763279170262,0.00013512,96087.0,96086.0,0.31462482]
[1763279170510,0.00013512,96087.0,96086.0,0.29381014]
[1763279171211,0.00013512,96087.0,96086.0,0.08566328]
[1763279171535,0.00013512,96087.0,96086.0,0.10647796]
[1763279171741,0.00013512,96087.0,96086.0,0.31462482]
[1763279171938,0.00013512,96087.0,96086.0,0.29381014]
[1763279174556,0.00013512,96087.0,96086.0,0.08566328]
[1763279194432,0.00013512,96087.0,96086.0,0.31462482]
[1763279194658,0.00013512,96087.0,96086.0,0.29381014]
[1763279194861,0.00013512,96087.0,96086.0,0.08566328]
[1763279195088,0.00013512,96087.0,96086.0,0.10647796]
[1763279196920,0.00013512,96087.0,96086.0,0.31462482]
[1763279197124,0.00013512,96087.0,96086.0,0.29381014]
[1763279199149,0.00013512,96087.0,96086.0,0.08566328]
[1763279199347,0.00013512,96087.0,96086.0,0.10647796]
[1763279200356,0.00013512,96087.0,96086.0,0.31462482]
[1763279200555,0.00013512,96087.0,96086.0,0.29381014]
[1763279200757,0.00013512,96087.0,96086.0,0.08566328]
[1763279201009,0.00013512,96087.0,96086.0,0.10647796]
[1763279206405,0.00013512,96087.0,96086.0,0.03674796]
[1763279208511,0.00013512,96087.0,96086.0,0.0801667]
[1763279211908,0.00013512,96087.0,96086.0,0.05935202]
[1763279212111,0.00013512,96087.0,96086.0,0.04341874]
[1763279213711,0.00013512,96087.0,96085.0,0.01097]
[1763279213924,0.01626,96086.0,96042.0,0.2082403]
[1763279214137,0.12088121,96073.0,96063.0,0.13495197]
[1763279214335,0.12088121,96073.0,96065.0,0.04341874]
[1763279214758,0.24176242,96075.0,96066.0,0.02385]
[1763279215156,0.24176242,96075.0,96067.0,0.01097]
[1763279216788,0.12088121,96075.0,96067.0,0.01097]
[1763279217790,0.12088121,96075.0,96068.0,0.02385]
[1763279217999,0.36264363,96080.0,96068.0,0.02385]
[1763279218202,0.36264363,96080.0,96079.0,0.10410215]
[1763279218408,0.01138,96081.0,96079.0,0.10410215]
[1763279221367,0.01138,96086.0,96079.0,0.10410215]
[1763279223182,0.01138,96086.0,96075.0,0.01097]
[1763279223387,0.36264363,96085.0,96079.0,0.10410215]
[1763279223586,0.01138,96086.0,96079.0,0.10410215]
[1763279224846,0.323,96088.0,96080.0,0.02305]
[1763279225022,0.323,96088.0,96080.0,0.03402]
[1763279225390,0.323,96088.0,96081.0,0.02305]
[1763279225591,0.323,96089.0,96081.0,0.02305]
[1763279226039,0.01632883,96088.0,96081.0,0.02305]
[1763279226262,0.323,96089.0,96081.0,0.02305]
[1763279227907,0.12108121,96090.0,96081.0,0.02305]
[1763279227908,0.0002,96090.0,96081.0,0.02305]
[1763279238506,0.0002,96090.0,96084.0,0.01097]
[1763279238920,0.0002,96090.0,96085.0,0.02305]
[1763279244140,0.0002,96090.0,96084.0,0.01097]
[1763279246320,0.0002,96090.0,96079.0,0.10410215]
[1763279246510,0.00901,96088.0,96079.0,0.10410215]
[1763279247607,0.24176242,96089.0,96079.0,0.10410215]
[1763279248306,0.24176242,96089.0,96079.0,0.12715215]
[1763279251047,0.24176242,96089.0,96079.0,0.10410215]
[1763279253088,0.01632857,96088.0,96079.0,0.10410215]
[1763279253290,0.04055857,96088.0,96080.0,0.10410215]
[1763279253494,0.00978,96081.0,96080.0,0.10410215]
[1763279254496,0.02514,96081.0,96080.0,0.10410215]
[1763279254700,0.00978,96081.0,96080.0,0.10410215]
[1763279254938,0.01164,96086.0,96080.0,0.10410215]
[1763279256831,0.01632908,96085.0,96080.0,0.10410215]
[1763279260309,0.01632908,96085.0,96081.0,0.01097]
[1763279261112,0.027,96082.0,96069.0,0.01097]
[1763279261316,0.24176242,96079.0,96069.0,0.01097]
[1763279261535,0.24176242,96079.0,96069.0,0.03455]
[1763279264616,0.12088121,96079.0,96069.0,0.03455]
[1763279268384,0.36264363,96080.0,96069.0,0.03455]
[1763279268581,0.36264363,96080.0,96079.0,0.10410215]
[1763279268794,0.03864,96082.0,96079.0,0.10410215]
[1763279273832,0.01536,96080.0,96079.0,0.10410215]
[1763279276107,0.01536,96080.0,96069.0,0.01097]
[1763279276315,0.19683652,96079.0,96069.0,0.01097]
[1763279276997,0.17260652,96079.0,96064.0,0.11507215]
[1763279277249,0.02596,96070.0,96064.0,0.11507215]
[1763279277649,0.16129652,96074.0,96064.0,0.11507215]
[1763279277878,0.16129652,96074.0,96064.0,0.13865215]
[1763279278102,0.16129652,96074.0,96064.0,0.11507215]
[1763279278301,0.16129652,96074.0,96065.0,0.02358]
[1763279280771,0.01633007,96072.0,96065.0,0.02358]
[1763279281012,0.01633007,96072.0,96068.0,0.01097]
[1763279281186,0.01164,96096.0,96069.0,0.02081837]
[1763279281395,0.01164,96096.0,96086.0,0.11507215]
[1763279281999,0.01177512,96087.0,96086.0,0.11507215]
[1763279282887,0.00013512,96087.0,96086.0,0.11507215]
[1763279285048,0.00013512,96087.0,96086.0,0.15849089]
[1763279285575,0.00013512,96087.0,96086.0,0.18976511]
[1763279286422,0.00013512,96087.0,96086.0,0.39791197]
[1763279286611,0.00013512,96087.0,96086.0,0.39891197]
[1763279286970,0.00013512,96087.0,96086.0,0.19076511]
[1763279287170,0.00013512,96087.0,96086.0,0.39891197]
[1763279287984,0.00013512,96087.0,96086.0,0.39991197]
[1763279288373,0.00024414,96098.0,96097.0,0.27876178]
[1763279288374,0.00013926,96098.0,96097.0,0.27876178]
[1763279288572,0.00024236,96098.0,96097.0,0.27876178]
[1763279288839,0.00024236,96098.0,96097.0,0.26251178]
[1763279289025,0.00024236,96098.0,96097.0,0.26668062]
[1763279289782,0.00024236,96098.0,96097.0,0.26768062]
[1763279291353,0.00024236,96098.0,96097.0,0.26868062]
[1763279291580,0.00024236,96098.0,96097.0,0.26968062]
[1763279294235,0.00024236,96098.0,96097.0,0.06155758]
[1763279296871,0.00024236,96098.0,96097.0,0.26968062]
[1763279298353,0.00024236,96098.0,96097.0,0.06155758]
[1763279298561,0.00024236,96098.0,96097.0,0.01813884]
[1763279298788,0.01639236,96098.0,96097.0,0.003]
[1763279299603,0.00024236,96098.0,96085.0,0.02374]
[1763279299730,0.01121236,96098.0,96096.0,0.01097]
[1763279299983,0.00024236,96098.0,96096.0,0.01097]
[1763279300201,0.01656969,96098.0,96096.0,0.01097]
[1763279302000,0.00024236,96098.0,96096.0,0.01097]
[1763279307845,0.00024236,96098.0,96096.0,0.03178252]
[1763279309198,0.00024236,96098.0,96097.0,0.02374]
[1763279315741,0.00024236,96098.0,96097.0,0.05501288]
[1763279316119,0.00024236,96098.0,96097.0,0.03127288]
[1763279316986,0.00024236,96098.0,96097.0,0.05208518]
[1763279323544,0.00024236,96098.0,96097.0,0.03127288]
[1763279330552,0.00024236,96098.0,96096.0,0.01097]
[1763279330946,0.00024236,96098.0,96096.0,0.04224278]
[1763279331754,0.00024236,96098.0,96096.0,0.03583]
[1763279332153,0.00024236,96098.0,96096.0,0.06710278]
[1763279337612,0.00024236,96098.0,96096.0,0.04224278]
[1763279337862,0.00024236,96098.0,96097.0,0.02486]
[1763279340160,0.00024236,96098.0,96096.0,0.04224278]
[1763279343806,0.00024236,96098.0,96096.0,0.01097]
[1763279345486,0.00024236,96098.0,96097.0,0.02395]
[1763279348285,0.00024236,96098.0,96095.0,0.08672215]
[1763279350621,0.00024236,96098.0,96096.0,0.04341874]
[1763279350829,0.00024236,96098.0,96097.0,0.25154178]
[1763279352653,0.00024236,96098.0,96097.0,0.25254178]
[1763279353487,0.00024236,96098.0,96097.0,0.25354178]
[1763279357426,0.00024236,96098.0,96097.0,0.04541874]
[1763279357584,0.00024236,96098.0,96097.0,0.27435408]
[1763279357787,0.00024236,96098.0,96097.0,0.25354178]
[1763279363931,0.00024236,96098.0,96097.0,0.57654178]
[1763279364962,0.00024236,96098.0,96097.0,0.57554178]
[1763279365493,0.00024236,96098.0,96097.0,0.57654178]
[1763279365694,0.00024236,96098.0,96097.0,0.57754178]
[1763279373360,0.00024236,96098.0,96097.0,0.72354178]
[1763279373739,4.926e-05,96098.0,96097.0,0.72354178]
[1763279374218,0.0002,96120.0,96119.0,0.2080754]
[1763279374388,0.0002,96120.0,96119.0,0.25149414]
[1763279375398,0.0002,96120.0,96119.0,0.04441874]
[1763279375811,0.0002,96120.0,96119.0,0.25249414]
[1763279376247,0.00025154,96120.0,96119.0,0.25249414]
[1763279377117,0.00025154,96120.0,96119.0,0.25149414]
[1763279377527,0.00025154,96120.0,96119.0,0.25249414]
[1763279377725,0.00025154,96120.0,96119.0,0.25149414]
[1763279378132,0.00025154,96120.0,96119.0,0.25249414]
[1763279378709,0.00025154,96120.0,96119.0,0.25349414]
[1763279380049,0.00084821,96120.0,96119.0,0.25349414]
[1763279382591,0.00084821,96120.0,96119.0,0.04541874]
[1763279383569,0.00084821,96120.0,96119.0,0.25349414]
[1763279384015,0.00084821,96120.0,96119.0,0.04541874]
[1763279384783,0.00084821,96120.0,96119.0,0.25349414]
[1763279385377,0.00084821,96120.0,96119.0,0.04541874]
[1763279390432,0.00084821,96120.0,96119.0,0.04341874]
[1763279390639,0.00084821,96120.0,96119.0,0.04541874]
[1763279391067,0.00084821,96120.0,96119.0,0.04441874]
[1763279391495,0.00084821,96120.0,96119.0,0.04541874]
[1763279391949,0.00084821,96120.0,96119.0,0.04441874]
[1763279392163,0.00084821,96120.0,96119.0,0.04341874]
[1763279392378,0.00084821,96120.0,96119.0,0.04441874]
[1763279392557,0.00084821,96120.0,96119.0,0.04541874]
[1763279398830,0.00084821,96120.0,96119.0,0.25349414]
[1763279399342,0.00084821,96120.0,96119.0,0.04541874]
[1763279402283,0.00084821,96120.0,96119.0,0.04441874]
[1763279402496,0.00084821,96120.0,96119.0,0.04341874]
[1763279402650,0.00084821,96120.0,96119.0,0.04541874]
[1763279403294,0.00084821,96120.0,96119.0,0.25349414]
[1763279403646,0.00084821,96120.0,96119.0,0.04541874]
[1763279403872,0.00084821,96120.0,96119.0,0.25349414]
[1763279404250,0.00084821,96120.0,96119.0,0.07668109]
[1763279404506,0.00084821,96120.0,96119.0,0.28475649]
[1763279404927,0.00084821,96120.0,96119.0,0.07668109]
[1763279405925,0.00084821,96120.0,96119.0,0.30556403]
[1763279406099,0.00084821,96120.0,96119.0,0.28475649]
[1763279406690,0.00084821,96120.0,96119.0,0.28375649]
[1763279407030,0.00084821,96120.0,96119.0,0.28275649]
[1763279407342,0.00084821,96120.0,96119.0,0.28475649]
[1763279409689,0.00084821,96120.0,96119.0,0.07668109]
[1763279409889,0.00084821,96120.0,96119.0,0.28475649]
[1763279412092,0.00084821,96120.0,96119.0,0.07668109]
[1763279412292,0.00084821,96120.0,96119.0,0.09748863]
[1763279412611,0.00084821,96120.0,96119.0,0.07668109]
[1763279414111,0.00032803,96120.0,96119.0,0.07668109]
[1763279414323,0.00032803,96120.0,96119.0,0.07568109]
[1763279414498,0.00032803,96120.0,96119.0,0.07468109]
[1763279414707,0.00032803,96120.0,96119.0,0.07668109]
[1763279417395,0.00032803,96120.0,96119.0,0.07568109]
[1763279417594,0.00032803,96120.0,96119.0,0.07468109]
[1763279417813,0.00032803,96120.0,96119.0,0.07668109]
[1763279419524,0.01634803,96120.0,96119.0,0.07668109]
[1763279422233,0.01634803,96120.0,96119.0,0.03326235]
[1763279422432,0.01634803,96120.0,96119.0,0.002]
[1763279422631,0.00032803,96120.0,96119.0,0.002]
[1763279423437,0.00032803,96120.0,96119.0,0.001]
[1763279423639,0.00032803,96120.0,96117.0,0.04341874]
[1763279423849,0.01238,96121.0,96119.0,0.001]
[1763279424045,0.01238,96121.0,96119.0,0.002]
[1763279424246,0.01238,96121.0,96117.0,0.04341874]
[1763279424636,0.01238,96121.0,96119.0,0.002]
[1763279424842,0.01238,96121.0,96119.0,0.001]
[1763279425039,0.01602,96120.0,96117.0,0.04341874]
[1763279425248,0.01602,96118.0,96117.0,0.04341874]
[1763279425687,0.01602,96118.0,96116.0,0.01634803]
[1763279425903,0.01238,96121.0,96111.0,0.10410215]
[1763279426235,0.01238,96115.0,96111.0,0.13536799]
[1763279426366,0.0284,96112.0,96111.0,0.13536799]
[1763279426573,0.0284,96112.0,96111.0,0.10410215]
[1763279427639,0.0284,96112.0,96111.0,0.10610215]
[1763279427860,0.0284,96112.0,96111.0,0.10510215]
[1763279436152,0.01238,96112.0,96111.0,0.10510215]
[1763279437082,0.0285,96112.0,96111.0,0.10510215]
[1763279437938,0.01238,96112.0,96111.0,0.10510215]
[1763279438122,0.0285,96112.0,96111.0,0.10510215]
[1763279439377,0.00021952,96116.0,96115.0,0.20808406]
[1763279439576,0.00021952,96116.0,96115.0,0.2515028]
[1763279440736,0.00021952,96116.0,96115.0,0.2655528]
[1763279442118,0.00021952,96116.0,96115.0,0.2665528]
[1763279453999,0.00021952,96116.0,96115.0,0.2655528]
[1763279454202,0.00021952,96116.0,96115.0,0.2665528]
[1763279455035,0.00021952,96116.0,96115.0,0.2645528]
[1763279455478,0.00021952,96116.0,96115.0,0.2665528]
[1763279460064,0.0002,96140.0,96115.0,0.2665528]
[1763279460248,0.0002,96140.0,96139.0,0.35555301]
[1763279460451,0.0002,96140.0,96139.0,0.14752089]
[1763279460728,0.0002,96140.0,96139.0,0.04758592]
[1763279461084,0.0002,96140.0,96139.0,0.25561804]
[1763279461984,0.0002,96140.0,96139.0,0.25761804]
[1763279464267,0.0002,96140.0,96139.0,0.25345086]
[1763279465851,0.00085072,96140.0,96139.0,0.25345086]
[1763279466583,0.00085072,96140.0,96139.0,0.25761793]
[1763279478559,0.00085072,96140.0,96139.0,0.04958581]
[1763279481807,0.00085072,96140.0,96139.0,0.25761793]
[1763279484702,0.00085072,96140.0,96139.0,0.04958581]
[1763279485021,0.00085072,96140.0,96139.0,0.25761793]
[1763279485349,0.00085072,96140.0,96139.0,0.04958581]
[1763279485703,0.00085072,96140.0,96139.0,0.25761793]
[1763279485900,0.00085072,96140.0,96139.0,0.04958581]
[1763279490470,0.00085072,96140.0,96139.0,0.25761793]
[1763279491431,0.00085072,96140.0,96139.0,0.04958581]
[1763279493590,0.00085072,96140.0,96139.0,0.25761793]
[1763279493752,0.00085072,96140.0,96139.0,0.04958581]
[1763279494158,0.00085072,96140.0,96139.0,0.25761793]
[1763279494901,0.00085072,96140.0,96139.0,0.04958581]
[1763279495291,0.00085072,96140.0,96139.0,0.04541874]
[1763279496463,0.01648072,96140.0,96139.0,0.002]
[1763279497315,0.01648072,96140.0,96139.0,0.001]
[1763279497552,0.01648072,96140.0,96139.0,0.002]
[1763279497989,0.03280265,96140.0,96139.0,0.001]
[1763279498802,0.03280265,96140.0,96132.0,0.10410215]
[1763279499106,0.01563,96133.0,96132.0,0.10410215]
[1763279500297,0.01563,96133.0,96132.0,0.10510215]
[1763279504322,0.01609093,96133.0,96132.0,0.10510215]
[1763279516253,0.03853625,96133.0,96132.0,0.10510215]
[1763279516512,0.01609093,96133.0,96132.0,0.10510215]
[1763279518389,0.03853625,96133.0,96132.0,0.10510215]
[1763279524606,0.02290625,96133.0,96132.0,0.10510215]
[1763279524826,0.16127331,96160.0,96144.0,0.20802094]
[1763279524827,0.07501773,96160.0,96144.0,0.20802094]
[1763279525026,0.00065022,96150.0,96149.0,0.25142922]